[Event "Titled Tuesday Blitz June 13 Late 2023"]
[White "Rodriguez Santiago, Jaime"]
[Black "Hnydiuk, Aleksander"]
[WhiteFideId "3100898"]
[BlackFideId "1109057"]
[WhiteElo "2025"]
[BlackElo "2374"]
[Result "0-1"]
[Round "2"]
[TimeControl "180+2"]
[Date "2023.06.13"]
[WhiteClock "0:00:17"]
[BlackClock "0:00:46"]
[Board "162"]

1. d4 {[%clk 0:03:00]}  Nf6 {[%clk 0:02:57]} 2. c4 {[%clk 0:03:00]}  c5 {[%clk 0:02:56]} 3. d5 {[%clk 0:03:00]}  b5 {[%clk 0:02:56]} 4. cxb5 {[%clk 0:02:59]}  a6 {[%clk 0:02:57]} 5. bxa6 {[%clk 0:02:59]}  g6 {[%clk 0:02:57]} 6. Nc3 {[%clk 0:02:58]}  Bg7 {[%clk 0:02:57]} 7. e4 {[%clk 0:02:58]}  O-O {[%clk 0:02:58]} 8. g3 {[%clk 0:02:51]}  d6 {[%clk 0:02:56]} 9. Nf3 {[%clk 0:02:47]}  Nbd7 {[%clk 0:02:52]} 10. Bd2 {[%clk 0:02:43]}  Nb6 {[%clk 0:02:50]} 11. a4 {[%clk 0:02:41]}  Bxa6 {[%clk 0:02:37]} 12. Bxa6 {[%clk 0:02:39]}  Rxa6 {[%clk 0:02:38]} 13. Qe2 {[%clk 0:02:26]}  Qa8 {[%clk 0:02:38]} 14. b3 {[%clk 0:02:21]}  e6 {[%clk 0:02:27]} 15. dxe6 {[%clk 0:02:09]}  Nxe4 {[%clk 0:02:27]} 16. Rc1 {[%clk 0:01:57]}  Nxd2 {[%clk 0:02:23]} 17. Kxd2 {[%clk 0:01:47]}  fxe6 {[%clk 0:02:13]} 18. Qxe6+ {[%clk 0:01:44]}  Kh8 {[%clk 0:02:13]} 19. Ng5 {[%clk 0:01:25]}  Rxf2+ {[%clk 0:02:12]} 20. Kd3 {[%clk 0:01:14]}  Qf8 {[%clk 0:01:20]} 21. Nce4 {[%clk 0:01:05]}  c4+ {[%clk 0:01:07]} 22. bxc4 {[%clk 0:00:41]}  Nxa4 {[%clk 0:01:05]} 23. Ke3 {[%clk 0:00:34]}  Nc5 {[%clk 0:00:53]} 24. Nxc5 {[%clk 0:00:24]}  dxc5 {[%clk 0:00:51]} 25. Qxa6 {[%clk 0:00:19]}  Bd4+ {[%clk 0:00:48]} 26. Kd3 {[%clk 0:00:18]}  Qf5+ {[%clk 0:00:47]} 27. Ne4 {[%clk 0:00:17]}  Qf3# {[%clk 0:00:46]} 0-1


[Site "https://www.chess.com"]

[Event "Titled Tuesday Blitz June 13 Late 2023"]
[White "Ward, Ieuan C"]
[Black "Flynn, Jacob"]
[WhiteFideId "406627"]
[BlackFideId "2509393"]
[WhiteElo "2286"]
[BlackElo "2053"]
[Result "1/2-1/2"]
[Round "2"]
[TimeControl "180+2"]
[Date "2023.06.13"]
[WhiteClock "0:00:11"]
[BlackClock "0:00:15"]
[Board "164"]

1. d4 {[%clk 0:03:00]}  d5 {[%clk 0:02:59]} 2. c4 {[%clk 0:03:00]}  e6 {[%clk 0:02:59]} 3. Nc3 {[%clk 0:03:00]}  Nf6 {[%clk 0:03:00]} 4. Bg5 {[%clk 0:03:00]}  Be7 {[%clk 0:02:57]} 5. e3 {[%clk 0:03:00]}  h6 {[%clk 0:02:55]} 6. Bh4 {[%clk 0:02:59]}  O-O {[%clk 0:02:56]} 7. Nf3 {[%clk 0:02:59]}  Ne4 {[%clk 0:02:54]} 8. Bxe7 {[%clk 0:02:58]}  Qxe7 {[%clk 0:02:54]} 9. Bd3 {[%clk 0:02:58]}  Nxc3 {[%clk 0:02:54]} 10. bxc3 {[%clk 0:02:59]}  dxc4 {[%clk 0:02:55]} 11. Bxc4 {[%clk 0:02:59]}  c5 {[%clk 0:02:55]} 12. O-O {[%clk 0:02:58]}  b6 {[%clk 0:02:49]} 13. Qe2 {[%clk 0:02:56]}  Bb7 {[%clk 0:02:49]} 14. Ne5 {[%clk 0:02:55]}  Nd7 {[%clk 0:02:48]} 15. Nxd7 {[%clk 0:02:54]}  Qxd7 {[%clk 0:02:44]} 16. Rfd1 {[%clk 0:02:54]}  Qc7 {[%clk 0:02:36]} 17. Rac1 {[%clk 0:02:54]}  Rad8 {[%clk 0:02:31]} 18. f3 {[%clk 0:02:53]}  Rfe8 {[%clk 0:02:30]} 19. e4 {[%clk 0:02:51]}  e5 {[%clk 0:02:24]} 20. dxe5 {[%clk 0:02:38]}  Qxe5 {[%clk 0:02:17]} 21. Bb5 {[%clk 0:02:25]}  Rf8 {[%clk 0:02:14]} 22. a4 {[%clk 0:02:05]}  g6 {[%clk 0:01:53]} 23. Bc4 {[%clk 0:02:02]}  Kg7 {[%clk 0:01:53]} 24. Qb2 {[%clk 0:01:57]}  Bc6 {[%clk 0:01:47]} 25. Bb5 {[%clk 0:01:52]}  Bxb5 {[%clk 0:01:35]} 26. axb5 {[%clk 0:01:53]}  c4 {[%clk 0:01:29]} 27. Ra1 {[%clk 0:01:45]}  Rd3 {[%clk 0:01:23]} 28. Rxd3 {[%clk 0:01:26]}  cxd3 {[%clk 0:01:24]} 29. Rxa7 {[%clk 0:01:26]}  Rd8 {[%clk 0:00:53]} 30. Ra1 {[%clk 0:01:13]}  Qc5+ {[%clk 0:00:46]} 31. Kf1 {[%clk 0:01:07]}  Qc4 {[%clk 0:00:33]} 32. Rd1 {[%clk 0:01:05]}  d2+ {[%clk 0:00:32]} 33. Kf2 {[%clk 0:01:04]}  Qc5+ {[%clk 0:00:20]} 34. Ke2 {[%clk 0:01:01]}  Qc4+ {[%clk 0:00:20]} 35. Kf2 {[%clk 0:01:00]}  Qd3 {[%clk 0:00:20]} 36. Qb3 {[%clk 0:00:35]}  Rc8 {[%clk 0:00:18]} 37. Qb2 {[%clk 0:00:32]}  Rd8 {[%clk 0:00:16]} 38. Qb3 {[%clk 0:00:33]}  Kh7 {[%clk 0:00:16]} 39. Qxf7+ {[%clk 0:00:31]}  Kh8 {[%clk 0:00:16]} 40. Qf6+ {[%clk 0:00:30]}  Kh7 {[%clk 0:00:16]} 41. Qf7+ {[%clk 0:00:29]}  Kh8 {[%clk 0:00:16]} 42. Qf6+ {[%clk 0:00:26]}  Kg8 {[%clk 0:00:17]} 43. Qxg6+ {[%clk 0:00:26]}  Kf8 {[%clk 0:00:18]} 44. Qf6+ {[%clk 0:00:24]}  Ke8 {[%clk 0:00:18]} 45. Qe6+ {[%clk 0:00:24]}  Kf8 {[%clk 0:00:19]} 46. Qxh6+ {[%clk 0:00:24]}  Ke7 {[%clk 0:00:19]} 47. Qg5+ {[%clk 0:00:19]}  Ke6 {[%clk 0:00:16]} 48. Qg6+ {[%clk 0:00:13]}  Kd7 {[%clk 0:00:15]} 49. Qc6+ {[%clk 0:00:12]}  Ke7 {[%clk 0:00:15]} 50. Qc7+ {[%clk 0:00:12]}  Rd7 {[%clk 0:00:15]} 51. Qe5+ {[%clk 0:00:12]}  Kd8 {[%clk 0:00:15]} 52. Qb8+ {[%clk 0:00:12]}  Ke7 {[%clk 0:00:16]} 53. Qe5+ {[%clk 0:00:13]}  Kf8 {[%clk 0:00:16]} 54. Qh8+ {[%clk 0:00:12]}  Kf7 {[%clk 0:00:15]} 55. Qh7+ {[%clk 0:00:11]}  Ke6 {[%clk 0:00:15]} 56. Qf5+ {[%clk 0:00:11]}  Ke7 {[%clk 0:00:15]} 57. Qe5+ {[%clk 0:00:11]} 1/2-1/2


[Site "https://www.chess.com"]

[Event "Titled Tuesday Blitz June 13 Late 2023"]
[White "Estrada Nieto, Julian"]
[Black "Sarkar, Justin"]
[WhiteFideId "5101018"]
[BlackFideId "2010011"]
[WhiteElo "2161"]
[BlackElo "2151"]
[Result "1-0"]
[Round "2"]
[TimeControl "180+2"]
[Date "2023.06.13"]
[WhiteClock "0:00:40"]
[BlackClock "0:00:00"]
[Board "165"]

1. e4 {[%clk 0:03:00]}  e5 {[%clk 0:02:56]} 2. Nf3 {[%clk 0:02:58]}  Nc6 {[%clk 0:02:56]} 3. Bb5 {[%clk 0:02:57]}  a6 {[%clk 0:02:56]} 4. Bxc6 {[%clk 0:02:52]}  dxc6 {[%clk 0:02:56]} 5. O-O {[%clk 0:02:52]}  f6 {[%clk 0:02:55]} 6. d4 {[%clk 0:02:52]}  exd4 {[%clk 0:02:55]} 7. Nxd4 {[%clk 0:02:52]}  c5 {[%clk 0:02:54]} 8. Ne2 {[%clk 0:02:53]}  Qxd1 {[%clk 0:02:52]} 9. Rxd1 {[%clk 0:02:53]}  Bd7 {[%clk 0:02:36]} 10. Nbc3 {[%clk 0:02:53]}  O-O-O {[%clk 0:02:34]} 11. Be3 {[%clk 0:02:52]}  Bd6 {[%clk 0:02:21]} 12. Bf4 {[%clk 0:02:52]}  Bc6 {[%clk 0:02:03]} 13. Rd2 {[%clk 0:02:45]}  Ne7 {[%clk 0:01:56]} 14. Rad1 {[%clk 0:02:42]}  Bxf4 {[%clk 0:01:47]} 15. Rxd8+ {[%clk 0:02:36]}  Rxd8 {[%clk 0:01:48]} 16. Rxd8+ {[%clk 0:02:36]}  Kxd8 {[%clk 0:01:48]} 17. Nxf4 {[%clk 0:02:37]}  g6 {[%clk 0:00:41]} 18. Ne6+ {[%clk 0:02:34]}  Kd7 {[%clk 0:00:41]} 19. Nxc5+ {[%clk 0:02:34]}  Kd6 {[%clk 0:00:41]} 20. Nd3 {[%clk 0:02:33]}  Bd7 {[%clk 0:00:29]} 21. f3 {[%clk 0:02:03]}  c5 {[%clk 0:00:28]} 22. Kf2 {[%clk 0:01:55]}  b5 {[%clk 0:00:26]} 23. Ke3 {[%clk 0:01:53]}  b4 {[%clk 0:00:23]} 24. Ne2 {[%clk 0:01:48]}  a5 {[%clk 0:00:23]} 25. c4 {[%clk 0:01:41]}  bxc3 {[%clk 0:00:13]} 26. Nxc3 {[%clk 0:01:39]}  c4 {[%clk 0:00:12]} 27. Nf4 {[%clk 0:01:35]}  Kc5 {[%clk 0:00:08]} 28. g4 {[%clk 0:01:26]}  Bc6 {[%clk 0:00:05]} 29. Ne6+ {[%clk 0:01:23]}  Kb4 {[%clk 0:00:04]} 30. Nd4 {[%clk 0:01:24]}  Bd7 {[%clk 0:00:03]} 31. Nc2+ {[%clk 0:01:18]}  Kc5 {[%clk 0:00:03]} 32. h3 {[%clk 0:01:14]}  Be6 {[%clk 0:00:02]} 33. Nd4 {[%clk 0:01:12]}  Bd7 {[%clk 0:00:02]} 34. f4 {[%clk 0:01:12]}  Nc6 {[%clk 0:00:01]} 35. Nxc6 {[%clk 0:01:11]}  Bxc6 {[%clk 0:00:01]} 36. g5 {[%clk 0:01:09]}  fxg5 {[%clk 0:00:01]} 37. fxg5 {[%clk 0:01:10]}  Bb7 {[%clk 0:00:02]} 38. h4 {[%clk 0:01:09]}  Bc6 {[%clk 0:00:02]} 39. Ne2 {[%clk 0:01:05]}  Kb4 {[%clk 0:00:02]} 40. Kd4 {[%clk 0:01:04]}  a4 {[%clk 0:00:02]} 41. Nc3 {[%clk 0:00:45]}  Bd7 {[%clk 0:00:01]} 42. Nd5+ {[%clk 0:00:44]}  Kb5 {[%clk 0:00:00]} 43. e5 {[%clk 0:00:40]} 1-0


[Site "https://www.chess.com"]

[Event "Titled Tuesday Blitz June 13 Late 2023"]
[White "Celestino, Rafael Teixeira"]
[Black "Rottenwohrer Suarez, Juan"]
[WhiteFideId "2108925"]
[BlackFideId "32068182"]
[WhiteElo "2283"]
[BlackElo "2174"]
[Result "0-1"]
[Round "2"]
[TimeControl "180+2"]
[Date "2023.06.13"]
[WhiteClock "0:00:22"]
[BlackClock "0:00:20"]
[Board "166"]

1. e4 {[%clk 0:03:00]}  c5 {[%clk 0:02:59]} 2. Nf3 {[%clk 0:03:00]}  g6 {[%clk 0:03:00]} 3. d4 {[%clk 0:03:01]}  cxd4 {[%clk 0:03:00]} 4. Nxd4 {[%clk 0:03:01]}  Nc6 {[%clk 0:03:01]} 5. Nc3 {[%clk 0:03:01]}  Bg7 {[%clk 0:03:01]} 6. Be3 {[%clk 0:03:01]}  Nf6 {[%clk 0:03:02]} 7. Qd2 {[%clk 0:03:01]}  O-O {[%clk 0:02:57]} 8. O-O-O {[%clk 0:03:01]}  d5 {[%clk 0:02:53]} 9. exd5 {[%clk 0:03:02]}  Nxd5 {[%clk 0:02:51]} 10. Nxd5 {[%clk 0:03:01]}  Qxd5 {[%clk 0:02:49]} 11. Nxc6 {[%clk 0:03:00]}  Qxc6 {[%clk 0:02:39]} 12. Bh6 {[%clk 0:02:55]}  Bxh6 {[%clk 0:02:18]} 13. Qxh6 {[%clk 0:02:56]}  Bf5 {[%clk 0:02:17]} 14. Bd3 {[%clk 0:02:46]}  Bxd3 {[%clk 0:02:10]} 15. Rxd3 {[%clk 0:02:46]}  Rac8 {[%clk 0:02:09]} 16. Rd2 {[%clk 0:02:40]}  Qxg2 {[%clk 0:02:06]} 17. Re1 {[%clk 0:02:40]}  Rc7 {[%clk 0:01:49]} 18. h4 {[%clk 0:02:22]}  Qg4 {[%clk 0:01:38]} 19. Rh1 {[%clk 0:02:06]}  Rfc8 {[%clk 0:01:35]} 20. h5 {[%clk 0:02:02]}  Qe4 {[%clk 0:01:11]} 21. c3 {[%clk 0:00:38]}  Qxh1+ {[%clk 0:01:03]} 22. Kc2 {[%clk 0:00:38]}  Qxh5 {[%clk 0:00:33]} 23. Qe3 {[%clk 0:00:37]}  Qf5+ {[%clk 0:00:31]} 24. Kc1 {[%clk 0:00:35]}  Rd7 {[%clk 0:00:30]} 25. a4 {[%clk 0:00:34]}  Rcd8 {[%clk 0:00:28]} 26. Rxd7 {[%clk 0:00:33]}  Qxd7 {[%clk 0:00:27]} 27. Qe2 {[%clk 0:00:29]}  Qxa4 {[%clk 0:00:26]} 28. f3 {[%clk 0:00:25]}  h5 {[%clk 0:00:24]} 29. Qf1 {[%clk 0:00:22]}  Qa1+ {[%clk 0:00:20]} 0-1


[Site "https://www.chess.com"]

[Event "Titled Tuesday Blitz June 13 Late 2023"]
[White "Matsuura, Frederico"]
[Black "Santos Flores, Alberto"]
[WhiteFideId "2107848"]
[BlackFideId "3601234"]
[WhiteElo "2302"]
[BlackElo "2235"]
[Result "0-1"]
[Round "2"]
[TimeControl "180+2"]
[Date "2023.06.13"]
[WhiteClock "0:00:15"]
[BlackClock "0:00:09"]
[Board "167"]

1. d4 {[%clk 0:03:00]}  d5 {[%clk 0:02:59]} 2. c4 {[%clk 0:02:59]}  c6 {[%clk 0:02:59]} 3. Nc3 {[%clk 0:02:58]}  Nf6 {[%clk 0:02:59]} 4. e3 {[%clk 0:02:59]}  a6 {[%clk 0:02:56]} 5. Nf3 {[%clk 0:02:56]}  Bf5 {[%clk 0:02:54]} 6. c5 {[%clk 0:02:48]}  Nbd7 {[%clk 0:02:53]} 7. b4 {[%clk 0:02:42]}  g6 {[%clk 0:02:46]} 8. Be2 {[%clk 0:02:39]}  Bg7 {[%clk 0:02:46]} 9. O-O {[%clk 0:02:39]}  O-O {[%clk 0:02:44]} 10. h3 {[%clk 0:02:39]}  Ne4 {[%clk 0:02:44]} 11. Qb3 {[%clk 0:02:33]}  e5 {[%clk 0:02:41]} 12. dxe5 {[%clk 0:02:17]}  Nxe5 {[%clk 0:02:40]} 13. Nd4 {[%clk 0:02:17]}  Nxc3 {[%clk 0:02:25]} 14. Qxc3 {[%clk 0:02:16]}  Qd7 {[%clk 0:02:12]} 15. Bb2 {[%clk 0:02:08]}  Bxh3 {[%clk 0:01:47]} 16. gxh3 {[%clk 0:02:05]}  Qxh3 {[%clk 0:01:48]} 17. Qd2 {[%clk 0:01:51]}  Rae8 {[%clk 0:01:36]} 18. f3 {[%clk 0:01:30]}  Qg3+ {[%clk 0:01:16]} 19. Kh1 {[%clk 0:01:30]}  Nc4 {[%clk 0:01:09]} 20. Bxc4 {[%clk 0:01:28]}  Re5 {[%clk 0:01:08]} 21. Rf2 {[%clk 0:01:22]}  dxc4 {[%clk 0:00:53]} 22. Rg2 {[%clk 0:01:17]}  Rh5+ {[%clk 0:00:52]} 23. Rh2 {[%clk 0:01:05]}  Bxd4 {[%clk 0:00:51]} 24. Bxd4 {[%clk 0:00:53]}  Qxf3+ {[%clk 0:00:48]} 25. Qg2 {[%clk 0:00:52]}  Rxh2+ {[%clk 0:00:40]} 26. Kxh2 {[%clk 0:00:51]}  Qh5+ {[%clk 0:00:35]} 27. Qh3 {[%clk 0:00:51]}  Qe2+ {[%clk 0:00:35]} 28. Qg2 {[%clk 0:00:52]}  Qh5+ {[%clk 0:00:27]} 29. Kg1 {[%clk 0:00:52]}  Re8 {[%clk 0:00:26]} 30. Rf1 {[%clk 0:00:50]}  f5 {[%clk 0:00:23]} 31. Rf3 {[%clk 0:00:46]}  Re4 {[%clk 0:00:23]} 32. Rg3 {[%clk 0:00:36]}  Qd1+ {[%clk 0:00:22]} 33. Kh2 {[%clk 0:00:36]}  Kf7 {[%clk 0:00:17]} 34. Rh3 {[%clk 0:00:35]}  h5 {[%clk 0:00:17]} 35. Qg5 {[%clk 0:00:28]}  Qe2+ {[%clk 0:00:13]} 36. Qg2 {[%clk 0:00:27]}  Qd3 {[%clk 0:00:11]} 37. Qg5 {[%clk 0:00:25]}  Qe2+ {[%clk 0:00:10]} 38. Qg2 {[%clk 0:00:25]}  Qxg2+ {[%clk 0:00:10]} 39. Kxg2 {[%clk 0:00:25]}  f4 {[%clk 0:00:11]} 40. Kf3 {[%clk 0:00:24]}  Re8 {[%clk 0:00:11]} 41. exf4 {[%clk 0:00:24]}  Re1 {[%clk 0:00:11]} 42. Rh2 {[%clk 0:00:22]}  Rb1 {[%clk 0:00:10]} 43. a3 {[%clk 0:00:21]}  Rb3+ {[%clk 0:00:10]} 44. Ke4 {[%clk 0:00:21]}  Rxa3 {[%clk 0:00:11]} 45. Rc2 {[%clk 0:00:21]}  Rb3 {[%clk 0:00:10]} 46. Rxc4 {[%clk 0:00:22]}  Ke6 {[%clk 0:00:11]} 47. Bc3 {[%clk 0:00:20]}  Rb1 {[%clk 0:00:11]} 48. Rd4 {[%clk 0:00:19]}  Rb3 {[%clk 0:00:10]} 49. Rd6+ {[%clk 0:00:19]}  Kf7 {[%clk 0:00:10]} 50. Bd2 {[%clk 0:00:19]}  Rb2 {[%clk 0:00:10]} 51. Ke5 {[%clk 0:00:19]}  h4 {[%clk 0:00:08]} 52. Rd7+ {[%clk 0:00:19]}  Ke8 {[%clk 0:00:08]} 53. Rd3 {[%clk 0:00:19]}  Kf7 {[%clk 0:00:08]} 54. Bc3 {[%clk 0:00:20]}  Rb3 {[%clk 0:00:07]} 55. Rd7+ {[%clk 0:00:20]}  Ke8 {[%clk 0:00:07]} 56. Rd3 {[%clk 0:00:20]}  Kf7 {[%clk 0:00:08]} 57. Ke4 {[%clk 0:00:21]}  Ke6 {[%clk 0:00:08]} 58. Rd6+ {[%clk 0:00:19]}  Kf7 {[%clk 0:00:08]} 59. Rd3 {[%clk 0:00:19]}  Ke6 {[%clk 0:00:08]} 60. Be1 {[%clk 0:00:19]}  Rxd3 {[%clk 0:00:08]} 61. Kxd3 {[%clk 0:00:19]}  h3 {[%clk 0:00:08]} 62. Bg3 {[%clk 0:00:19]}  Kd5 {[%clk 0:00:08]} 63. Bh2 {[%clk 0:00:16]}  a5 {[%clk 0:00:07]} 64. bxa5 {[%clk 0:00:17]}  Kxc5 {[%clk 0:00:08]} 65. Ke4 {[%clk 0:00:15]}  Kb5 {[%clk 0:00:08]} 66. Ke5 {[%clk 0:00:16]}  c5 {[%clk 0:00:08]} 67. Kf6 {[%clk 0:00:16]}  c4 {[%clk 0:00:08]} 68. Kxg6 {[%clk 0:00:17]}  c3 {[%clk 0:00:09]} 69. f5 {[%clk 0:00:18]}  c2 {[%clk 0:00:09]} 70. f6 {[%clk 0:00:17]}  c1=Q {[%clk 0:00:10]} 71. Bf4 {[%clk 0:00:15]}  Qxf4 {[%clk 0:00:09]} 0-1


[Site "https://www.chess.com"]

[Event "Titled Tuesday Blitz June 13 Late 2023"]
[White "Ronka, Erik"]
[Black "Burdalev, Kirill"]
[WhiteFideId "505080"]
[BlackFideId "14121913"]
[WhiteElo "2264"]
[BlackElo "2236"]
[Result "1/2-1/2"]
[Round "2"]
[TimeControl "180+2"]
[Date "2023.06.13"]
[WhiteClock "0:00:04"]
[BlackClock "0:00:02"]
[Board "168"]

1. e4 {[%clk 0:03:00]}  e5 {[%clk 0:02:59]} 2. Nf3 {[%clk 0:03:00]}  Nc6 {[%clk 0:03:00]} 3. Bb5 {[%clk 0:03:00]}  Nf6 {[%clk 0:03:00]} 4. O-O {[%clk 0:02:57]}  Nxe4 {[%clk 0:02:59]} 5. d4 {[%clk 0:02:58]}  Nd6 {[%clk 0:02:59]} 6. Bxc6 {[%clk 0:02:58]}  dxc6 {[%clk 0:02:59]} 7. dxe5 {[%clk 0:02:59]}  Nf5 {[%clk 0:03:00]} 8. Qxd8+ {[%clk 0:02:59]}  Kxd8 {[%clk 0:03:00]} 9. Nc3 {[%clk 0:02:59]}  Ke8 {[%clk 0:03:01]} 10. h3 {[%clk 0:02:58]}  h5 {[%clk 0:03:02]} 11. Bf4 {[%clk 0:02:58]}  Be7 {[%clk 0:03:02]} 12. Rad1 {[%clk 0:02:56]}  Be6 {[%clk 0:03:02]} 13. b3 {[%clk 0:02:55]}  Rd8 {[%clk 0:02:56]} 14. Ne4 {[%clk 0:02:46]}  Bd5 {[%clk 0:02:44]} 15. Rfe1 {[%clk 0:02:01]}  Bb4 {[%clk 0:02:19]} 16. Re2 {[%clk 0:01:52]}  Be6 {[%clk 0:01:59]} 17. Rxd8+ {[%clk 0:01:53]}  Kxd8 {[%clk 0:01:59]} 18. Nfg5 {[%clk 0:01:38]}  h4 {[%clk 0:01:44]} 19. c3 {[%clk 0:01:28]}  Be7 {[%clk 0:01:42]} 20. Nxe6+ {[%clk 0:01:21]}  fxe6 {[%clk 0:01:43]} 21. f3 {[%clk 0:01:21]}  Rh5 {[%clk 0:01:34]} 22. Kf2 {[%clk 0:01:17]}  b6 {[%clk 0:01:31]} 23. Rd2+ {[%clk 0:01:03]}  Ke8 {[%clk 0:01:30]} 24. Re2 {[%clk 0:00:50]}  a5 {[%clk 0:01:29]} 25. c4 {[%clk 0:00:36]}  Kd7 {[%clk 0:01:15]} 26. c5 {[%clk 0:00:36]}  Kc8 {[%clk 0:01:07]} 27. Rc2 {[%clk 0:00:34]}  b5 {[%clk 0:00:59]} 28. Rd2 {[%clk 0:00:24]}  g5 {[%clk 0:00:35]} 29. Bh2 {[%clk 0:00:19]}  Bf8 {[%clk 0:00:32]} 30. Ke2 {[%clk 0:00:18]}  Ne7 {[%clk 0:00:32]} 31. Nf6 {[%clk 0:00:14]}  Rh8 {[%clk 0:00:30]} 32. Bg1 {[%clk 0:00:05]}  Nd5 {[%clk 0:00:30]} 33. Be3 {[%clk 0:00:06]}  Nxe3 {[%clk 0:00:23]} 34. Kxe3 {[%clk 0:00:06]}  Bxc5+ {[%clk 0:00:24]} 35. Ke4 {[%clk 0:00:06]}  Be7 {[%clk 0:00:21]} 36. Ng4 {[%clk 0:00:04]}  c5 {[%clk 0:00:19]} 37. f4 {[%clk 0:00:03]}  gxf4 {[%clk 0:00:18]} 38. Kxf4 {[%clk 0:00:04]}  Rf8+ {[%clk 0:00:16]} 39. Ke4 {[%clk 0:00:05]}  c6 {[%clk 0:00:16]} 40. Ne3 {[%clk 0:00:04]}  Kc7 {[%clk 0:00:14]} 41. Ng4 {[%clk 0:00:04]}  Bg5 {[%clk 0:00:12]} 42. Rf2 {[%clk 0:00:03]}  Rd8 {[%clk 0:00:07]} 43. Rf7+ {[%clk 0:00:02]}  Kb6 {[%clk 0:00:06]} 44. Rg7 {[%clk 0:00:03]}  Rd4+ {[%clk 0:00:06]} 45. Kf3 {[%clk 0:00:03]}  Bc1 {[%clk 0:00:06]} 46. Rg6 {[%clk 0:00:03]}  c4 {[%clk 0:00:05]} 47. bxc4 {[%clk 0:00:02]}  bxc4 {[%clk 0:00:06]} 48. Nf2 {[%clk 0:00:01]}  c3 {[%clk 0:00:05]} 49. Rg4 {[%clk 0:00:02]}  Rxg4 {[%clk 0:00:03]} 50. hxg4 {[%clk 0:00:03]}  c2 {[%clk 0:00:03]} 51. Nd3 {[%clk 0:00:03]}  Bg5 {[%clk 0:00:03]} 52. g3 {[%clk 0:00:01]}  c5 {[%clk 0:00:04]} 53. gxh4 {[%clk 0:00:01]}  Bxh4 {[%clk 0:00:04]} 54. Nc1 {[%clk 0:00:01]}  Bg5 {[%clk 0:00:04]} 55. Ne2 {[%clk 0:00:02]}  c4 {[%clk 0:00:03]} 56. Ke4 {[%clk 0:00:01]}  Kc5 {[%clk 0:00:03]} 57. Kf3 {[%clk 0:00:01]}  c3 {[%clk 0:00:02]} 58. Ke4 {[%clk 0:00:01]}  Kc4 {[%clk 0:00:02]} 59. Nd4 {[%clk 0:00:01]}  c1=Q {[%clk 0:00:02]} 60. Nxe6 {[%clk 0:00:02]}  Qe1+ {[%clk 0:00:02]} 61. Kf5 {[%clk 0:00:03]}  Bh4 {[%clk 0:00:01]} 62. Kg6 {[%clk 0:00:01]}  Qxe5 {[%clk 0:00:01]} 63. Kf7 {[%clk 0:00:02]}  Qe4 {[%clk 0:00:01]} 64. Ng7 {[%clk 0:00:03]}  Qxg4 {[%clk 0:00:01]} 65. Nf5 {[%clk 0:00:03]}  Qxf5+ {[%clk 0:00:01]} 66. Ke8 {[%clk 0:00:04]}  c2 {[%clk 0:00:02]} 67. a4 {[%clk 0:00:04]}  c1=Q {[%clk 0:00:02]} 1/2-1/2


[Site "https://www.chess.com"]